[Event "*** Titled Tuesday Blitz"]
[Site "Chess.com"]
[Date "2021.02.16"]
[Round "5"]
[White "ridnani2021"]
[Black "bait_or_mate"]
[Result "1-0"]
[WhiteElo "2415"]
[BlackElo "2547"]
[TimeControl "180+1"]
[EndTime "10:57:17 PST"]
[Termination "ridnani2021 won on time"]

1. e4 {[%clk 0:03:00.9]} 1... c5 {[%clk 0:02:54.4]} 2. Nf3 {[%clk 0:03:00.9]}
2... e6 {[%clk 0:02:54.7]} 3. b3 {[%clk 0:03:00.3]} 3... a6 {[%clk 0:02:53.6]}
4. Bb2 {[%clk 0:03:00]} 4... Nc6 {[%clk 0:02:51.9]} 5. g3 {[%clk 0:02:58.6]}
5... Qc7 {[%clk 0:02:44.8]} 6. Bg2 {[%clk 0:02:58]} 6... Nf6 {[%clk 0:02:41.1]}
7. Nc3 {[%clk 0:02:57.1]} 7... Be7 {[%clk 0:02:39.2]} 8. O-O {[%clk 0:02:57.1]}
8... O-O {[%clk 0:02:38.8]} 9. d4 {[%clk 0:02:57.3]} 9... cxd4 {[%clk 0:02:38]}
10. Nxd4 {[%clk 0:02:58.2]} 10... d6 {[%clk 0:02:30]} 11. Rc1 {[%clk 0:02:51.8]}
11... Bd7 {[%clk 0:02:28.6]} 12. h3 {[%clk 0:02:49.4]} 12... Rac8 {[%clk
0:02:27.4]} 13. Kh2 {[%clk 0:02:48.1]} 13... Rfd8 {[%clk 0:02:25.5]} 14. f4
{[%clk 0:02:45.9]} 14... b5 {[%clk 0:01:50.8]} 15. a3 {[%clk 0:02:38.2]} 15...
Nxd4 {[%clk 0:01:49]} 16. Qxd4 {[%clk 0:02:37.6]} 16... Bc6 {[%clk 0:01:48.5]}
17. Rfe1 {[%clk 0:02:36.2]} 17... e5 {[%clk 0:01:43.6]} 18. fxe5 {[%clk
0:02:31]} 18... dxe5 {[%clk 0:01:44.5]} 19. Qf2 {[%clk 0:02:28.2]} 19... Bb7
{[%clk 0:01:36.6]} 20. Nd5 {[%clk 0:02:27.7]} 20... Nxd5 {[%clk 0:00:37.7]} 21.
exd5 {[%clk 0:02:25.4]} 21... Bxd5 {[%clk 0:00:34]} 22. Bxe5 {[%clk 0:02:23.4]}
22... Bd6 {[%clk 0:00:20.7]} 23. Bxd6 {[%clk 0:02:08.8]} 23... Rxd6 {[%clk
0:00:21.6]} 24. Bxd5 {[%clk 0:02:08.5]} 24... Rxd5 {[%clk 0:00:22.5]} 25. c4
{[%clk 0:02:08.8]} 25... Rc5 {[%clk 0:00:20.1]} 26. Re4 {[%clk 0:02:05.6]} 26...
h6 {[%clk 0:00:18.5]} 27. Rf4 {[%clk 0:01:59]} 27... Qe7 {[%clk 0:00:14.8]} 28.
Re1 {[%clk 0:01:58.2]} 28... Qc7 {[%clk 0:00:11.6]} 29. Rc1 {[%clk 0:01:58.1]}
29... Qe7 {[%clk 0:00:11.3]} 30. Re1 {[%clk 0:01:56.5]} 30... Qb7 {[%clk
0:00:11.4]} 31. Ree4 {[%clk 0:01:53.4]} 31... bxc4 {[%clk 0:00:10.5]} 32. bxc4
{[%clk 0:01:51.2]} 32... a5 {[%clk 0:00:07.4]} 33. Qf1 {[%clk 0:01:46.4]} 33...
Qb2+ {[%clk 0:00:07]} 34. Rf2 {[%clk 0:01:46.3]} 34... Qb7 {[%clk 0:00:07.1]}
35. Ref4 {[%clk 0:01:45.9]} 35... R8c7 {[%clk 0:00:06.8]} 36. Qd3 {[%clk
0:01:43.6]} 36... Qc8 {[%clk 0:00:05.3]} 37. Rc2 {[%clk 0:01:41]} 37... a4
{[%clk 0:00:04.4]} 38. h4 {[%clk 0:01:32.9]} 38... g6 {[%clk 0:00:04.6]} 39. Re4
{[%clk 0:01:28.5]} 39... h5 {[%clk 0:00:04.2]} 40. Qe3 {[%clk 0:01:25.7]} 40...
Qf5 {[%clk 0:00:03.7]} 41. Rf2 {[%clk 0:01:23.1]} 41... Qd7 {[%clk 0:00:02.6]}
42. Re8+ {[%clk 0:01:18.4]} 42... Kg7 {[%clk 0:00:02.8]} 43. Qc3+ {[%clk
0:01:18.4]} 1-0

[Event "*** Titled Tuesday Blitz"]
[Site "Chess.com"]
[Date "2021.02.16"]
[Round "5"]
[White "zimmm36"]
[Black "SergeyShtyka"]
[Result "0-1"]
[WhiteElo "2270"]
[BlackElo "2477"]
[TimeControl "180+1"]
[EndTime "10:57:18 PST"]
[Termination "SergeyShtyka won by resignation"]

1. d4 {[%clk 0:03:00.4]} 1... c5 {[%clk 0:02:55.1]} 2. Nf3 {[%clk 0:03:01.3]}
2... cxd4 {[%clk 0:02:55.1]} 3. Nxd4 {[%clk 0:02:58.9]} 3... e5 {[%clk
0:02:54.8]} 4. Nb3 {[%clk 0:02:58.6]} 4... d5 {[%clk 0:02:54.4]} 5. g3 {[%clk
0:02:59.5]} 5... Nf6 {[%clk 0:02:54.1]} 6. Bg2 {[%clk 0:02:59.9]} 6... Be6
{[%clk 0:02:54.6]} 7. O-O {[%clk 0:03:00.3]} 7... Be7 {[%clk 0:02:54.2]} 8. Nc3
{[%clk 0:03:00.6]} 8... O-O {[%clk 0:02:53.4]} 9. Bg5 {[%clk 0:02:57.4]} 9... e4
{[%clk 0:02:38.8]} 10. Bxf6 {[%clk 0:02:53.2]} 10... Bxf6 {[%clk 0:02:38.8]} 11.
Nd4 {[%clk 0:02:52.8]} 11... Nc6 {[%clk 0:02:35.3]} 12. Nxe6 {[%clk 0:02:48.6]}
12... fxe6 {[%clk 0:02:35.1]} 13. e3 {[%clk 0:02:49]} 13... Bxc3 {[%clk
0:02:31.9]} 14. bxc3 {[%clk 0:02:48.8]} 14... Ne5 {[%clk 0:02:29.7]} 15. Rb1
{[%clk 0:02:47.9]} 15... Qe7 {[%clk 0:02:26.9]} 16. Rb4 {[%clk 0:02:32.8]} 16...
Rac8 {[%clk 0:02:24.3]} 17. Qb1 {[%clk 0:02:21.2]} 17... b6 {[%clk 0:02:21.2]}
18. Qb3 {[%clk 0:02:14]} 18... Qc5 {[%clk 0:02:06.4]} 19. Ra4 {[%clk 0:01:47.2]}
19... Rf7 {[%clk 0:01:57.6]} 20. Bh3 {[%clk 0:01:26.4]} 20... Re7 {[%clk
0:01:48.1]} 21. Rd1 {[%clk 0:01:11]} 21... Rcc7 {[%clk 0:01:37.9]} 22. Ra3
{[%clk 0:00:17.2]} 22... Kf7 {[%clk 0:01:30.4]} 23. Kg2 {[%clk 0:00:17.1]} 23...
g5 {[%clk 0:01:28]} 24. Kg1 {[%clk 0:00:15]} 24... g4 {[%clk 0:01:27.3]} 25. Bg2
{[%clk 0:00:15.3]} 25... h5 {[%clk 0:01:27.3]} 26. h3 {[%clk 0:00:14.9]} 26...
Qc4 {[%clk 0:01:22.9]} 27. Qxc4 {[%clk 0:00:14.7]} 27... Rxc4 {[%clk 0:01:20.3]}
28. hxg4 {[%clk 0:00:13.8]} 28... hxg4 {[%clk 0:01:21.2]} 29. Rd4 {[%clk
0:00:13.9]} 29... Rc5 {[%clk 0:01:15.2]} 30. Bf1 {[%clk 0:00:02.6]} 30... Rec7
{[%clk 0:01:13.7]} 31. Be2 {[%clk 0:00:02.1]} 31... Rxc3 {[%clk 0:01:12.3]} 32.
Rxc3 {[%clk 0:00:02.7]} 32... Rxc3 {[%clk 0:01:12.2]} 33. Ra4 {[%clk 0:00:03.6]}
33... a5 {[%clk 0:01:11.6]} 34. Bd1 {[%clk 0:00:03.4]} 34... Nc4 {[%clk
0:01:01.1]} 35. Bxg4 {[%clk 0:00:02.6]} 35... b5 {[%clk 0:01:01.2]} 36. Rxc4
{[%clk 0:00:01.9]} 36... bxc4 {[%clk 0:01:00.6]} 37. Bd1 {[%clk 0:00:02]} 37...
Ra3 {[%clk 0:01:00.6]} 0-1

[Event "*** Titled Tuesday Blitz"]
[Site "Chess.com"]
[Date "2021.02.16"]
[Round "5"]
[White "AlexSuv"]
[Black "ChristopherYoo"]
[Result "0-1"]
[WhiteElo "2455"]
[BlackElo "2887"]
[TimeControl "180+1"]
[EndTime "10:57:23 PST"]
[Termination "ChristopherYoo won by resignation"]

1. d4 {[%clk 0:03:00.9]} 1... Nf6 {[%clk 0:02:49.8]} 2. c4 {[%clk 0:02:54.4]}
2... g6 {[%clk 0:02:49]} 3. Nc3 {[%clk 0:02:53.6]} 3... Bg7 {[%clk 0:02:48.4]}
4. e4 {[%clk 0:02:52.9]} 4... d6 {[%clk 0:02:48.8]} 5. Nf3 {[%clk 0:02:48.4]}
5... O-O {[%clk 0:02:48.4]} 6. Be2 {[%clk 0:02:47.7]} 6... e5 {[%clk 0:02:48.6]}
7. Be3 {[%clk 0:02:45.8]} 7... exd4 {[%clk 0:02:47.2]} 8. Nxd4 {[%clk
0:02:37.8]} 8... Re8 {[%clk 0:02:47.2]} 9. f3 {[%clk 0:02:35.6]} 9... c6 {[%clk
0:02:45.2]} 10. Bf2 {[%clk 0:02:34.5]} 10... Nh5 {[%clk 0:02:25.8]} 11. Qd2
{[%clk 0:02:19.9]} 11... Na6 {[%clk 0:02:16]} 12. O-O {[%clk 0:02:13.5]} 12...
Nc5 {[%clk 0:02:12.1]} 13. Rad1 {[%clk 0:02:12]} 13... Be5 {[%clk 0:01:52.1]}
14. g3 {[%clk 0:02:11.4]} 14... Nf6 {[%clk 0:01:44.7]} 15. Nb3 {[%clk
0:01:57.1]} 15... Nxb3 {[%clk 0:01:43.8]} 16. axb3 {[%clk 0:01:58]} 16... Be6
{[%clk 0:01:41.4]} 17. Rfe1 {[%clk 0:01:53.5]} 17... Qa5 {[%clk 0:01:38.3]} 18.
Bf1 {[%clk 0:01:44.3]} 18... Nd7 {[%clk 0:01:14.1]} 19. f4 {[%clk 0:01:38.9]}
19... Bg7 {[%clk 0:01:13.7]} 20. Qxd6 {[%clk 0:01:38.9]} 20... Bf8 {[%clk
0:01:13.7]} 21. Qd2 {[%clk 0:01:35.5]} 21... Nc5 {[%clk 0:01:12.2]} 22. f5
{[%clk 0:01:28.5]} 22... Rad8 {[%clk 0:00:54.1]} 23. Qg5 {[%clk 0:01:17.9]}
23... h6 {[%clk 0:00:42.5]} 24. Qf4 {[%clk 0:01:02.6]} 24... Bc8 {[%clk
0:00:34.7]} 25. Rxd8 {[%clk 0:00:55.4]} 25... Rxd8 {[%clk 0:00:33.2]} 26. fxg6
{[%clk 0:00:51.1]} 26... fxg6 {[%clk 0:00:33.2]} 27. Qf6 {[%clk 0:00:44.8]}
27... Rd6 {[%clk 0:00:32.8]} 28. Qe5 {[%clk 0:00:37.1]} 28... Re6 {[%clk
0:00:32.1]} 29. Qb8 {[%clk 0:00:34.3]} 29... Re8 {[%clk 0:00:30.3]} 30. Bh3
{[%clk 0:00:31.6]} 30... Bd7 {[%clk 0:00:28.8]} 31. Qf4 {[%clk 0:00:17.1]} 31...
Bxh3 {[%clk 0:00:28.4]} 32. e5 {[%clk 0:00:17.6]} 32... Nd3 {[%clk 0:00:27.7]}
33. Qf6 {[%clk 0:00:17.3]} 33... Re6 {[%clk 0:00:27.4]} 34. Qf4 {[%clk
0:00:17.6]} 34... Nxf4 {[%clk 0:00:27.3]} 0-1

[Event "*** Titled Tuesday Blitz"]
[Site "Chess.com"]
[Date "2021.02.16"]
[Round "5"]
[White "Piotrek1979"]
[Black "JuliaEfremova"]
[Result "1-0"]
[WhiteElo "2417"]
[BlackElo "2222"]
[TimeControl "180+1"]
[EndTime "10:57:23 PST"]
[Termination "Piotrek1979 won by checkmate"]

1. e4 {[%clk 0:03:00.9]} 1... d5 {[%clk 0:02:59]} 2. exd5 {[%clk 0:03:00.2]}
2... Qxd5 {[%clk 0:02:57.9]} 3. Nc3 {[%clk 0:03:00.2]} 3... Qa5 {[%clk
0:02:58.1]} 4. d4 {[%clk 0:03:00.2]} 4... Nf6 {[%clk 0:02:58.2]} 5. Nf3 {[%clk
0:02:57.8]} 5... Bg4 {[%clk 0:02:58]} 6. h3 {[%clk 0:02:56.2]} 6... Bh5 {[%clk
0:02:57.1]} 7. g4 {[%clk 0:02:55.2]} 7... Bg6 {[%clk 0:02:56.9]} 8. Ne5 {[%clk
0:02:54.6]} 8... Nbd7 {[%clk 0:02:56.3]} 9. Nc4 {[%clk 0:02:52.1]} 9... Qa6
{[%clk 0:02:56.4]} 10. Bf4 {[%clk 0:02:46.8]} 10... Qe6+ {[%clk 0:02:29.4]} 11.
Be2 {[%clk 0:02:33.6]} 11... c6 {[%clk 0:02:16.2]} 12. O-O {[%clk 0:02:30.4]}
12... Nd5 {[%clk 0:02:13.1]} 13. Bg3 {[%clk 0:02:23.8]} 13... Nxc3 {[%clk
0:02:05.7]} 14. bxc3 {[%clk 0:02:22.6]} 14... Nb6 {[%clk 0:02:04.9]} 15. Ne5
{[%clk 0:02:01.5]} 15... f6 {[%clk 0:01:59.1]} 16. Nxg6 {[%clk 0:01:54.4]} 16...
hxg6 {[%clk 0:02:00]} 17. Qd3 {[%clk 0:01:51]} 17... Rxh3 {[%clk 0:01:42.6]} 18.
Rfe1 {[%clk 0:01:42.9]} 18... Qf7 {[%clk 0:01:32.7]} 19. Bf3 {[%clk 0:01:41.1]}
19... f5 {[%clk 0:01:20.7]} 20. gxf5 {[%clk 0:01:31.3]} 20... gxf5 {[%clk
0:01:19.8]} 21. Bg2 {[%clk 0:01:25]} 21... Rh8 {[%clk 0:01:06]} 22. Be5 {[%clk
0:01:23.7]} 22... Nd7 {[%clk 0:01:03.3]} 23. Rab1 {[%clk 0:01:16.3]} 23... Nxe5
{[%clk 0:00:49.5]} 24. Rxe5 {[%clk 0:01:17.2]} 24... e6 {[%clk 0:00:42.2]} 25.
Qc4 {[%clk 0:01:16.3]} 25... O-O-O {[%clk 0:00:39.8]} 26. Bxc6 {[%clk
0:01:10.6]} 26... b6 {[%clk 0:00:27.1]} 27. Qa6+ {[%clk 0:00:50.2]} 27... Kb8
{[%clk 0:00:25.1]} 28. Rxb6+ {[%clk 0:00:42]} 28... axb6 {[%clk 0:00:26]} 29.
Qxb6+ {[%clk 0:00:39.1]} 29... Kc8 {[%clk 0:00:25.6]} 30. Qa6+ {[%clk
0:00:37.8]} 30... Kb8 {[%clk 0:00:25.4]} 31. Rb5+ {[%clk 0:00:29.4]} 31... Kc7
{[%clk 0:00:25.4]} 32. Rb7+ {[%clk 0:00:28.7]} 32... Kd6 {[%clk 0:00:25.5]} 33.
Be4# {[%clk 0:00:24.3]} 1-0

[Event "*** Titled Tuesday Blitz"]
[Site "Chess.com"]
[Date "2021.02.16"]
[Round "5"]
[White "Violord"]
[Black "Pintacara"]
[Result "1-0"]
[WhiteElo "2710"]
[BlackElo "2494"]
[TimeControl "180+1"]
[EndTime "10:57:28 PST"]
[Termination "Violord won on time"]

1. e4 {[%clk 0:02:35.2]} 1... c5 {[%clk 0:02:56]} 2. Nf3 {[%clk 0:02:35]} 2...
e6 {[%clk 0:02:56.3]} 3. c3 {[%clk 0:02:34.7]} 3... Nf6 {[%clk 0:02:55.5]} 4. e5
{[%clk 0:02:34.2]} 4... Nd5 {[%clk 0:02:55.7]} 5. d4 {[%clk 0:02:34.9]} 5... d6
{[%clk 0:02:54.9]} 6. c4 {[%clk 0:02:33.2]} 6... Nb6 {[%clk 0:02:51]} 7. exd6
{[%clk 0:02:32.7]} 7... Bxd6 {[%clk 0:02:49.1]} 8. dxc5 {[%clk 0:02:32.9]} 8...
Bxc5 {[%clk 0:02:49.5]} 9. Qxd8+ {[%clk 0:02:33.5]} 9... Kxd8 {[%clk 0:02:50.1]}
10. Nc3 {[%clk 0:02:34]} 10... Ke7 {[%clk 0:02:43.3]} 11. a3 {[%clk 0:02:32.7]}
11... a5 {[%clk 0:02:39.1]} 12. Ne4 {[%clk 0:02:26.6]} 12... N6d7 {[%clk
0:02:27.6]} 13. Nxc5 {[%clk 0:02:18.3]} 13... Nxc5 {[%clk 0:02:26]} 14. Be3
{[%clk 0:02:18.9]} 14... Nb3 {[%clk 0:02:23.1]} 15. Rd1 {[%clk 0:02:19]} 15...
Nc6 {[%clk 0:02:06.7]} 16. Bd3 {[%clk 0:02:18.8]} 16... a4 {[%clk 0:02:00.9]}
17. O-O {[%clk 0:02:17.1]} 17... f6 {[%clk 0:01:51.8]} 18. Rfe1 {[%clk
0:02:12.4]} 18... e5 {[%clk 0:01:50.4]} 19. Nh4 {[%clk 0:02:07.8]} 19... Be6
{[%clk 0:01:48.5]} 20. Nf5+ {[%clk 0:02:03.5]} 20... Bxf5 {[%clk 0:01:48.2]} 21.
Bxf5 {[%clk 0:02:03.5]} 21... g6 {[%clk 0:01:48]} 22. Be4 {[%clk 0:02:03]} 22...
Rhd8 {[%clk 0:01:42.5]} 23. f4 {[%clk 0:02:03.4]} 23... Rxd1 {[%clk 0:01:41.7]}
24. Rxd1 {[%clk 0:02:02.9]} 24... Rd8 {[%clk 0:01:06.5]} 25. Rxd8 {[%clk
0:01:49]} 25... Kxd8 {[%clk 0:01:06.6]} 26. Kf2 {[%clk 0:01:41.2]} 26... Kc7
{[%clk 0:00:56.6]} 27. Ke2 {[%clk 0:01:39.4]} 27... Nbd4+ {[%clk 0:00:42]} 28.
Kd3 {[%clk 0:01:35.7]} 28... f5 {[%clk 0:00:38.5]} 29. Bxc6 {[%clk 0:01:33.4]}
29... Nxc6 {[%clk 0:00:39.4]} 30. fxe5 {[%clk 0:01:29.6]} 30... Nxe5+ {[%clk
0:00:38.5]} 31. Kd4 {[%clk 0:01:27.6]} 31... Ng4 {[%clk 0:00:30.7]} 32. Bf4+
{[%clk 0:01:23.2]} 32... Kc6 {[%clk 0:00:30.2]} 33. h3 {[%clk 0:01:23.7]} 33...
Nf6 {[%clk 0:00:29.5]} 34. Ke5 {[%clk 0:01:23]} 34... Ne4 {[%clk 0:00:26.6]} 35.
Be3 {[%clk 0:01:18.7]} 35... Nd6 {[%clk 0:00:12.4]} 36. Kd4 {[%clk 0:01:18.4]}
36... b5 {[%clk 0:00:09.8]} 37. cxb5+ {[%clk 0:01:16.2]} 37... Kxb5 {[%clk
0:00:10.3]} 38. Kd5 {[%clk 0:01:15]} 38... Ne4 {[%clk 0:00:07.1]} 39. Bd4 {[%clk
0:01:12.3]} 39... Nd2 {[%clk 0:00:06.1]} 40. Bg7 {[%clk 0:01:10]} 40... Nc4
{[%clk 0:00:03.3]} 41. Ke6 {[%clk 0:01:09.3]} 41... Ne3 {[%clk 0:00:02.4]} 42.
g3 {[%clk 0:01:08.3]} 1-0

[Event "*** Titled Tuesday Blitz"]
[Site "Chess.com"]
[Date "2021.02.16"]
[Round "5"]
[White "Onischuk_V"]
[Black "ENajer77"]
[Result "1-0"]
[WhiteElo "2857"]
[BlackElo "2620"]
[TimeControl "180+1"]
[EndTime "10:57:33 PST"]
[Termination "Onischuk_V won by resignation"]

1. Nf3 {[%clk 0:03:00.9]} 1... d5 {[%clk 0:02:07.5]} 2. g3 {[%clk 0:03:01.8]}
2... Bf5 {[%clk 0:02:05.9]} 3. Bg2 {[%clk 0:03:01.2]} 3... e6 {[%clk 0:02:06.4]}
4. c4 {[%clk 0:02:56.7]} 4... c6 {[%clk 0:02:05.6]} 5. cxd5 {[%clk 0:02:47]}
5... exd5 {[%clk 0:02:03.2]} 6. O-O {[%clk 0:02:42.9]} 6... Nf6 {[%clk
0:02:03.1]} 7. d3 {[%clk 0:02:43.3]} 7... Be7 {[%clk 0:02:02.1]} 8. Qb3 {[%clk
0:02:38.1]} 8... Nbd7 {[%clk 0:01:28.2]} 9. Nd4 {[%clk 0:02:12.2]} 9... Nc5
{[%clk 0:01:26.8]} 10. Qc2 {[%clk 0:02:10.3]} 10... Bg6 {[%clk 0:01:12.9]} 11.
Nc3 {[%clk 0:01:45.4]} 11... O-O {[%clk 0:01:09.2]} 12. h3 {[%clk 0:01:44.7]}
12... Ne6 {[%clk 0:00:55.4]} 13. Nxe6 {[%clk 0:01:43.9]} 13... fxe6 {[%clk
0:00:56.3]} 14. e4 {[%clk 0:01:44.1]} 14... Nd7 {[%clk 0:00:42.8]} 15. Qe2
{[%clk 0:01:29]} 15... Bf6 {[%clk 0:00:41.9]} 16. f4 {[%clk 0:01:22.8]} 16...
Bd4+ {[%clk 0:00:40.6]} 17. Kh2 {[%clk 0:01:22.8]} 17... Nc5 {[%clk 0:00:27.3]}
18. Bd2 {[%clk 0:01:13.3]} 18... b5 {[%clk 0:00:20.5]} 19. Rac1 {[%clk
0:01:07.7]} 19... b4 {[%clk 0:00:18.2]} 20. Nd1 {[%clk 0:01:07.2]} 20... Qb6
{[%clk 0:00:18]} 21. Be3 {[%clk 0:01:00]} 21... Bxe3 {[%clk 0:00:15.1]} 22. Qxe3
{[%clk 0:00:59.7]} 22... Nd7 {[%clk 0:00:06.7]} 23. Qxb6 {[%clk 0:00:59.5]}
23... axb6 {[%clk 0:00:06.7]} 24. Rxc6 {[%clk 0:01:00.1]} 24... dxe4 {[%clk
0:00:06]} 25. dxe4 {[%clk 0:00:52.8]} 25... Nc5 {[%clk 0:00:06.1]} 26. Rxb6
{[%clk 0:00:46.2]} 26... Bxe4 {[%clk 0:00:06.1]} 27. Bxe4 {[%clk 0:00:45.5]}
27... Nxe4 {[%clk 0:00:07]} 28. Rxb4 {[%clk 0:00:45.5]} 28... Nc5 {[%clk
0:00:03.3]} 29. Nc3 {[%clk 0:00:38.6]} 29... e5 {[%clk 0:00:03]} 30. Rb5 {[%clk
0:00:36.8]} 30... Nd3 {[%clk 0:00:03]} 31. Rd1 {[%clk 0:00:35.5]} 31... Nf2
{[%clk 0:00:02.8]} 32. Rd2 {[%clk 0:00:35.5]} 32... exf4 {[%clk 0:00:02.1]} 33.
Rxf2 {[%clk 0:00:35.6]} 1-0

[Event "*** Titled Tuesday Blitz"]
[Site "Chess.com"]
[Date "2021.02.16"]
[Round "5"]
[White "rychessmaster1"]
[Black "ljuks68"]
[Result "1-0"]
[WhiteElo "2553"]
[BlackElo "2386"]
[TimeControl "180+1"]
[EndTime "10:57:33 PST"]
[Termination "rychessmaster1 won by checkmate"]

1. d4 {[%clk 0:02:59.8]} 1... d5 {[%clk 0:02:59.6]} 2. Nc3 {[%clk 0:03:00.3]}
2... Nf6 {[%clk 0:02:58.7]} 3. Bf4 {[%clk 0:03:00.6]} 3... Bf5 {[%clk
0:02:54.5]} 4. f3 {[%clk 0:03:01.1]} 4... e6 {[%clk 0:02:53.8]} 5. g4 {[%clk
0:03:01.6]} 5... Bg6 {[%clk 0:02:53.5]} 6. h4 {[%clk 0:03:02.3]} 6... h6 {[%clk
0:02:52]} 7. e3 {[%clk 0:03:02.1]} 7... Bb4 {[%clk 0:02:50.7]} 8. Bd3 {[%clk
0:03:02.1]} 8... Bxd3 {[%clk 0:02:44.1]} 9. cxd3 {[%clk 0:03:02.8]} 9... c5
{[%clk 0:02:40.4]} 10. dxc5 {[%clk 0:03:02.4]} 10... Bxc5 {[%clk 0:02:40.6]} 11.
d4 {[%clk 0:03:02.3]} 11... Bd6 {[%clk 0:02:40.4]} 12. Nge2 {[%clk 0:03:02.3]}
12... Nc6 {[%clk 0:02:40.3]} 13. Kf2 {[%clk 0:03:02.2]} 13... h5 {[%clk
0:02:17]} 14. g5 {[%clk 0:02:52.9]} 14... Ng8 {[%clk 0:02:15.5]} 15. g6 {[%clk
0:02:53.7]} 15... f6 {[%clk 0:02:05.3]} 16. Qb3 {[%clk 0:02:48.7]} 16... Nge7
{[%clk 0:01:48.5]} 17. Bxd6 {[%clk 0:02:37.1]} 17... Qxd6 {[%clk 0:01:46.9]} 18.
Nf4 {[%clk 0:02:38]} 18... a6 {[%clk 0:01:31]} 19. Rac1 {[%clk 0:02:12.2]} 19...
Na5 {[%clk 0:01:13.3]} 20. Qa4+ {[%clk 0:02:07.7]} 20... Nec6 {[%clk 0:01:12.9]}
21. Nce2 {[%clk 0:01:35.9]} 21... e5 {[%clk 0:01:03]} 22. Nd3 {[%clk 0:01:28.2]}
22... O-O {[%clk 0:00:51.1]} 23. Rc5 {[%clk 0:01:15.7]} 23... b6 {[%clk
0:00:46.1]} 24. Rcc1 {[%clk 0:01:08.3]} 24... b5 {[%clk 0:00:32.7]} 25. Qc2
{[%clk 0:01:07.9]} 25... exd4 {[%clk 0:00:31.7]} 26. Nxd4 {[%clk 0:01:08.4]}
26... Nxd4 {[%clk 0:00:31.4]} 27. exd4 {[%clk 0:01:09.3]} 27... Qb6 {[%clk
0:00:21.9]} 28. Qc5 {[%clk 0:01:05]} 28... Qe6 {[%clk 0:00:18.7]} 29. Nf4 {[%clk
0:00:59.7]} 29... Qf5 {[%clk 0:00:18.4]} 30. Qxd5+ {[%clk 0:01:00.4]} 30... Qxd5
{[%clk 0:00:18.5]} 31. Nxd5 {[%clk 0:01:01.3]} 31... Rfd8 {[%clk 0:00:17.8]} 32.
Ne7+ {[%clk 0:00:57.5]} 32... Kf8 {[%clk 0:00:17.1]} 33. Nf5 {[%clk 0:00:58.1]}
33... Rd5 {[%clk 0:00:15.7]} 34. Ne3 {[%clk 0:00:57.1]} 34... Rxd4 {[%clk
0:00:15.9]} 35. Rc7 {[%clk 0:00:58]} 35... Rd2+ {[%clk 0:00:14.2]} 36. Kg3
{[%clk 0:00:57.9]} 36... Re8 {[%clk 0:00:13.1]} 37. Nf5 {[%clk 0:00:57.7]} 37...
Nc4 {[%clk 0:00:11.7]} 38. Rf7+ {[%clk 0:00:56.9]} 38... Kg8 {[%clk 0:00:10.9]}
39. Rxg7+ {[%clk 0:00:57.7]} 39... Kf8 {[%clk 0:00:11.4]} 40. Rf7+ {[%clk
0:00:57.1]} 40... Kg8 {[%clk 0:00:11.4]} 41. Nh6+ {[%clk 0:00:58]} 41... Kh8
{[%clk 0:00:11.7]} 42. Rh7# {[%clk 0:00:58.9]} 1-0

[Event "*** Titled Tuesday Blitz"]
[Site "Chess.com"]
[Date "2021.02.16"]
[Round "5"]
[White "Stewie_89"]
[Black "AlexeiShirov"]
[Result "0-1"]
[WhiteElo "2609"]
[BlackElo "2840"]
[TimeControl "180+1"]
[EndTime "10:57:34 PST"]
[Termination "AlexeiShirov won by resignation"]

1. e4 {[%clk 0:03:00.9]} 1... e5 {[%clk 0:02:59.4]} 2. Nf3 {[%clk 0:03:00.4]}
2... Nc6 {[%clk 0:02:59.3]} 3. Bb5 {[%clk 0:03:01]} 3... a6 {[%clk 0:02:58.4]}
4. Ba4 {[%clk 0:03:01.5]} 4... Nf6 {[%clk 0:02:58.1]} 5. d3 {[%clk 0:03:02.2]}
5... d6 {[%clk 0:02:55.8]} 6. c3 {[%clk 0:03:02]} 6... g6 {[%clk 0:02:55.2]} 7.
h3 {[%clk 0:02:59.9]} 7... Bg7 {[%clk 0:02:54.3]} 8. O-O {[%clk 0:03:00]} 8...
O-O {[%clk 0:02:53.2]} 9. Nbd2 {[%clk 0:02:56.2]} 9... Nh5 {[%clk 0:02:52.2]}
10. Re1 {[%clk 0:02:31.4]} 10... f5 {[%clk 0:02:43]} 11. Nf1 {[%clk 0:02:31.8]}
11... fxe4 {[%clk 0:02:37.1]} 12. dxe4 {[%clk 0:02:30.4]} 12... Nf4 {[%clk
0:02:36.3]} 13. Bxf4 {[%clk 0:02:24.9]} 13... Rxf4 {[%clk 0:02:33.9]} 14. Ne3
{[%clk 0:02:17.9]} 14... Kh8 {[%clk 0:02:18.5]} 15. Nd5 {[%clk 0:02:15.5]} 15...
Rf8 {[%clk 0:02:15.4]} 16. Nh2 {[%clk 0:02:05.4]} 16... Ne7 {[%clk 0:02:07.7]}
17. c4 {[%clk 0:01:50]} 17... c6 {[%clk 0:02:03.4]} 18. Ne3 {[%clk 0:01:45.2]}
18... b5 {[%clk 0:01:58.8]} 19. Bb3 {[%clk 0:01:43.6]} 19... Bb7 {[%clk
0:01:55.2]} 20. a4 {[%clk 0:01:32.4]} 20... b4 {[%clk 0:01:50.8]} 21. c5 {[%clk
0:01:21.8]} 21... d5 {[%clk 0:01:46.9]} 22. Qd2 {[%clk 0:01:17.8]} 22... Qa5
{[%clk 0:01:39.4]} 23. Rac1 {[%clk 0:01:01.1]} 23... Rad8 {[%clk 0:01:38]} 24.
exd5 {[%clk 0:01:00.1]} 24... cxd5 {[%clk 0:01:37.3]} 25. Neg4 {[%clk 0:01:00]}
25... e4 {[%clk 0:01:32.4]} 26. f3 {[%clk 0:00:50.8]} 26... Nf5 {[%clk
0:01:29.3]} 27. c6 {[%clk 0:00:47.8]} 27... Bd4+ {[%clk 0:01:25.8]} 28. Ne3
{[%clk 0:00:36.9]} 28... Bxe3+ {[%clk 0:01:13.2]} 29. Rxe3 {[%clk 0:00:36.4]}
29... Qb6 {[%clk 0:01:02]} 30. cxb7 {[%clk 0:00:36]} 30... Nxe3 {[%clk 0:00:56]}
31. Kh1 {[%clk 0:00:33.8]} 31... d4 {[%clk 0:00:51.9]} 32. fxe4 {[%clk
0:00:27.5]} 32... Qxb7 {[%clk 0:00:50]} 33. Bd5 {[%clk 0:00:26.6]} 33... Nxd5
{[%clk 0:00:48.4]} 34. exd5 {[%clk 0:00:25.1]} 34... Qxd5 {[%clk 0:00:48.2]} 35.
Qd3 {[%clk 0:00:22.2]} 35... a5 {[%clk 0:00:46.4]} 36. Nf3 {[%clk 0:00:20.2]}
36... Qf5 {[%clk 0:00:46.1]} 37. Qd2 {[%clk 0:00:18]} 37... d3 {[%clk 0:00:46]}
38. Rc7 {[%clk 0:00:17.3]} 38... Qf4 {[%clk 0:00:44.4]} 39. Rc5 {[%clk
0:00:10.4]} 39... Qxd2 {[%clk 0:00:43.5]} 40. Nxd2 {[%clk 0:00:11.3]} 40... Rf2
{[%clk 0:00:43.2]} 41. Nb3 {[%clk 0:00:11]} 0-1